[Event "Titled Tuesday Blitz March 22 Late 2022"]
[White "Horak, Martin"]
[Black "Rostovtsev, Dmitry"]
[WhiteFideId "367095"]
[BlackFideId "34278320"]
[WhiteElo "1997"]
[BlackElo "2359"]
[Result "0-1"]
[Round "05"]
[TimeControl "180+1"]
[Date "2022.03.22"]
[WhiteClock "0:00:18"]
[BlackClock "0:01:37"]

1. d4 {[%clk 0:03:00]}  Nf6 {[%clk 0:02:56]} 2. Nf3 {[%clk 0:03:00]}  g6 {[%clk 0:02:54]} 3. c4 {[%clk 0:03:00]}  Bg7 {[%clk 0:02:55]} 4. e3 {[%clk 0:03:00]}  O-O {[%clk 0:02:56]} 5. Be2 {[%clk 0:03:01]}  d6 {[%clk 0:02:57]} 6. Nc3 {[%clk 0:03:00]}  Nc6 {[%clk 0:02:58]} 7. d5 {[%clk 0:03:00]}  Na5 {[%clk 0:02:55]} 8. b4 {[%clk 0:02:35]}  Nxd5 {[%clk 0:02:35]} 9. Nxd5 {[%clk 0:02:32]}  Bxa1 {[%clk 0:02:35]} 10. bxa5 {[%clk 0:02:31]}  c6 {[%clk 0:02:35]} 11. Nf4 {[%clk 0:02:23]}  Qxa5+ {[%clk 0:02:30]} 12. Bd2 {[%clk 0:02:22]}  Bc3 {[%clk 0:02:30]} 13. O-O {[%clk 0:02:06]}  Bxd2 {[%clk 0:02:29]} 14. Qxd2 {[%clk 0:02:06]}  Qxd2 {[%clk 0:02:29]} 15. Nxd2 {[%clk 0:02:07]}  Kg7 {[%clk 0:02:17]} 16. Rb1 {[%clk 0:01:58]}  Rb8 {[%clk 0:02:11]} 17. Bf3 {[%clk 0:01:53]}  Bf5 {[%clk 0:02:01]} 18. Rb2 {[%clk 0:01:45]}  e5 {[%clk 0:01:59]} 19. Ne2 {[%clk 0:01:42]}  Rfd8 {[%clk 0:01:58]} 20. e4 {[%clk 0:01:37]}  Be6 {[%clk 0:01:58]} 21. Nc3 {[%clk 0:01:35]}  Rdc8 {[%clk 0:01:55]} 22. Kf1 {[%clk 0:01:26]}  b5 {[%clk 0:01:51]} 23. cxb5 {[%clk 0:01:21]}  cxb5 {[%clk 0:01:51]} 24. Nd5 {[%clk 0:00:53]}  Rc1+ {[%clk 0:01:48]} 25. Ke2 {[%clk 0:00:52]}  Bxd5 {[%clk 0:01:48]} 26. exd5 {[%clk 0:00:52]}  f5 {[%clk 0:01:48]} 27. Nb3 {[%clk 0:00:44]}  Rc3 {[%clk 0:01:45]} 28. Kd2 {[%clk 0:00:43]}  b4 {[%clk 0:01:45]} 29. Be2 {[%clk 0:00:43]}  Rb6 {[%clk 0:01:40]} 30. Na5 {[%clk 0:00:26]}  Rc5 {[%clk 0:01:39]} 31. Nc4 {[%clk 0:00:23]}  Rxd5+ {[%clk 0:01:39]} 32. Kc2 {[%clk 0:00:22]}  Rb8 {[%clk 0:01:39]} 33. Kb3 {[%clk 0:00:22]}  Rd4 {[%clk 0:01:40]} 34. Na5 {[%clk 0:00:20]}  Rc8 {[%clk 0:01:38]} 35. Bc4 {[%clk 0:00:19]}  d5 {[%clk 0:01:36]} 36. Bb5 {[%clk 0:00:19]}  Rc3+ {[%clk 0:01:36]} 37. Ka4 {[%clk 0:00:18]}  Ra3# {[%clk 0:01:37]} 0-1


[Site "https://www.chess.com"]

[Event "Titled Tuesday Blitz March 22 Late 2022"]
[White "Horcajuelo Rocamora, Martin"]
[Black "Borodavkin, Anatoly"]
[WhiteFideId "24573027"]
[BlackFideId "14150662"]
[WhiteElo "1706"]
[BlackElo "1845"]
[Result "1-0"]
[Round "05"]
[TimeControl "180+1"]
[Date "2022.03.22"]
[WhiteClock "0:00:23"]
[BlackClock "0:00:14"]

1. e4 {[%clk 0:03:00]}  e5 {[%clk 0:03:00]} 2. Nf3 {[%clk 0:02:57]}  Nf6 {[%clk 0:03:00]} 3. Nxe5 {[%clk 0:02:53]}  d6 {[%clk 0:03:00]} 4. Nf3 {[%clk 0:02:53]}  Nxe4 {[%clk 0:03:01]} 5. Nc3 {[%clk 0:02:53]}  Nxc3 {[%clk 0:03:00]} 6. dxc3 {[%clk 0:02:53]}  Be7 {[%clk 0:03:01]} 7. Be3 {[%clk 0:02:54]}  Nc6 {[%clk 0:03:02]} 8. Qd2 {[%clk 0:02:54]}  Be6 {[%clk 0:03:02]} 9. O-O-O {[%clk 0:02:54]}  Qd7 {[%clk 0:03:03]} 10. Kb1 {[%clk 0:02:54]}  a6 {[%clk 0:03:01]} 11. h3 {[%clk 0:02:50]}  O-O-O {[%clk 0:03:01]} 12. g4 {[%clk 0:02:42]}  f5 {[%clk 0:02:46]} 13. g5 {[%clk 0:02:37]}  Rhf8 {[%clk 0:02:32]} 14. Nd4 {[%clk 0:02:34]}  Nxd4 {[%clk 0:02:25]} 15. Qxd4 {[%clk 0:02:32]}  c5 {[%clk 0:01:57]} 16. Qxg7 {[%clk 0:02:22]}  Rf7 {[%clk 0:01:43]} 17. Qh6 {[%clk 0:02:19]}  Bf8 {[%clk 0:01:37]} 18. Qh5 {[%clk 0:02:12]}  f4 {[%clk 0:01:25]} 19. Bc1 {[%clk 0:01:43]}  Bg7 {[%clk 0:01:04]} 20. Bg2 {[%clk 0:01:14]}  Qa4 {[%clk 0:00:40]} 21. b3 {[%clk 0:01:01]}  Qa5 {[%clk 0:00:40]} 22. Qe2 {[%clk 0:00:53]}  Re7 {[%clk 0:00:31]} 23. Bb2 {[%clk 0:00:31]}  Bxc3 {[%clk 0:00:27]} 24. Bxc3 {[%clk 0:00:31]}  Bxb3 {[%clk 0:00:18]} 25. Bxa5 {[%clk 0:00:26]}  Bxa2+ {[%clk 0:00:16]} 26. Kxa2 {[%clk 0:00:25]}  Rxe2 {[%clk 0:00:17]} 27. Bxd8 {[%clk 0:00:25]}  Rxc2+ {[%clk 0:00:17]} 28. Kb3 {[%clk 0:00:25]}  Rxf2 {[%clk 0:00:17]} 29. Rxd6 {[%clk 0:00:22]}  Rxg2 {[%clk 0:00:17]} 30. Bb6 {[%clk 0:00:23]}  Rg3+ {[%clk 0:00:14]} 31. Kc4 {[%clk 0:00:23]} 1-0


[Site "https://www.chess.com"]

[Event "Titled Tuesday Blitz March 22 Late 2022"]
[White "Janaszak, Dawid"]
[Black "Sapunov, Evgeny"]
[WhiteFideId "1119206"]
[BlackFideId "4126661"]
[WhiteElo "2199"]
[BlackElo "2470"]
[Result "1-0"]
[Round "05"]
[TimeControl "180+1"]
[Date "2022.03.22"]
[WhiteClock "0:00:35"]
[BlackClock "0:00:05"]

1. e4 {[%clk 0:03:00]}  c5 {[%clk 0:02:55]} 2. Nc3 {[%clk 0:03:00]}  Nc6 {[%clk 0:02:53]} 3. Bb5 {[%clk 0:02:59]}  Nd4 {[%clk 0:02:53]} 4. Nf3 {[%clk 0:03:00]}  Nxb5 {[%clk 0:02:52]} 5. Nxb5 {[%clk 0:03:00]}  d6 {[%clk 0:02:52]} 6. d4 {[%clk 0:03:00]}  a6 {[%clk 0:02:52]} 7. Nc3 {[%clk 0:02:59]}  cxd4 {[%clk 0:02:53]} 8. Qxd4 {[%clk 0:03:00]}  e5 {[%clk 0:02:53]} 9. Qb4 {[%clk 0:02:55]}  h6 {[%clk 0:02:51]} 10. Be3 {[%clk 0:02:51]}  Nf6 {[%clk 0:02:51]} 11. Bb6 {[%clk 0:02:41]}  Qe7 {[%clk 0:02:43]} 12. O-O-O {[%clk 0:02:39]}  Bd7 {[%clk 0:02:43]} 13. a4 {[%clk 0:02:33]}  Bc6 {[%clk 0:02:42]} 14. Rhe1 {[%clk 0:02:26]}  Qe6 {[%clk 0:00:36]} 15. Nd2 {[%clk 0:01:56]}  d5 {[%clk 0:00:23]} 16. exd5 {[%clk 0:01:39]}  Nxd5 {[%clk 0:00:20]} 17. Nxd5 {[%clk 0:01:32]}  Bxb4 {[%clk 0:00:18]} 18. Nc7+ {[%clk 0:01:32]}  Ke7 {[%clk 0:00:19]} 19. Nxe6 {[%clk 0:01:33]}  Kxe6 {[%clk 0:00:19]} 20. c3 {[%clk 0:01:22]}  Be7 {[%clk 0:00:16]} 21. Nc4 {[%clk 0:01:20]}  f6 {[%clk 0:00:13]} 22. a5 {[%clk 0:01:20]}  Rac8 {[%clk 0:00:13]} 23. Ne3 {[%clk 0:01:15]}  h5 {[%clk 0:00:10]} 24. h4 {[%clk 0:01:13]}  g6 {[%clk 0:00:09]} 25. f4 {[%clk 0:01:12]}  Bd6 {[%clk 0:00:09]} 26. g3 {[%clk 0:01:06]}  Rh7 {[%clk 0:00:06]} 27. f5+ {[%clk 0:00:47]}  gxf5 {[%clk 0:00:06]} 28. Nxf5 {[%clk 0:00:48]}  Kxf5 {[%clk 0:00:06]} 29. Rxd6 {[%clk 0:00:47]}  Rf7 {[%clk 0:00:06]} 30. Rf1+ {[%clk 0:00:40]}  Kg6 {[%clk 0:00:05]} 31. Bd8 {[%clk 0:00:35]} 1-0


[Site "https://www.chess.com"]

[Event "Titled Tuesday Blitz March 22 Late 2022"]
[White "Jaracz, Pawel"]
[Black "Debray, Christopher"]
[WhiteFideId "1102222"]
[BlackFideId "630810"]
[WhiteElo "2429"]
[BlackElo "2393"]
[Result "1/2-1/2"]
[Round "05"]
[TimeControl "180+1"]
[Date "2022.03.22"]
[WhiteClock "0:00:32"]
[BlackClock "0:00:24"]

1. d4 {[%clk 0:03:00]}  d5 {[%clk 0:03:00]} 2. c4 {[%clk 0:03:00]}  e6 {[%clk 0:03:00]} 3. Nc3 {[%clk 0:03:00]}  Nf6 {[%clk 0:02:59]} 4. cxd5 {[%clk 0:03:00]}  exd5 {[%clk 0:02:59]} 5. Bg5 {[%clk 0:03:00]}  Be7 {[%clk 0:02:33]} 6. e3 {[%clk 0:02:59]}  O-O {[%clk 0:02:31]} 7. Qc2 {[%clk 0:02:59]}  c6 {[%clk 0:02:29]} 8. Bd3 {[%clk 0:02:59]}  h6 {[%clk 0:02:24]} 9. Bf4 {[%clk 0:02:57]}  Nbd7 {[%clk 0:02:18]} 10. h3 {[%clk 0:02:57]}  Re8 {[%clk 0:02:16]} 11. Nf3 {[%clk 0:02:53]}  Nf8 {[%clk 0:02:11]} 12. g4 {[%clk 0:02:46]}  Bb4 {[%clk 0:02:04]} 13. O-O-O {[%clk 0:02:45]}  Bxc3 {[%clk 0:01:54]} 14. Qxc3 {[%clk 0:02:41]}  Ne4 {[%clk 0:01:54]} 15. Qc2 {[%clk 0:02:41]}  Qa5 {[%clk 0:01:42]} 16. Kb1 {[%clk 0:02:40]}  Be6 {[%clk 0:01:36]} 17. Rhg1 {[%clk 0:02:38]}  Rac8 {[%clk 0:01:20]} 18. Nd2 {[%clk 0:02:29]}  c5 {[%clk 0:01:06]} 19. Nb3 {[%clk 0:02:20]}  Qb6 {[%clk 0:01:03]} 20. Bxe4 {[%clk 0:01:49]}  cxd4 {[%clk 0:00:55]} 21. Qd2 {[%clk 0:01:49]}  dxe4 {[%clk 0:00:52]} 22. Nxd4 {[%clk 0:01:47]}  Bc4 {[%clk 0:00:44]} 23. Rc1 {[%clk 0:01:47]}  Ne6 {[%clk 0:00:39]} 24. Be5 {[%clk 0:01:46]}  f6 {[%clk 0:00:34]} 25. Bg3 {[%clk 0:01:21]}  Nxd4 {[%clk 0:00:34]} 26. exd4 {[%clk 0:01:21]}  Bd3+ {[%clk 0:00:33]} 27. Ka1 {[%clk 0:01:21]}  Qxd4 {[%clk 0:00:33]} 28. Bf4 {[%clk 0:01:17]}  Qd7 {[%clk 0:00:28]} 29. Qb4 {[%clk 0:01:14]}  Rxc1+ {[%clk 0:00:26]} 30. Rxc1 {[%clk 0:01:12]}  Rc8 {[%clk 0:00:27]} 31. Rxc8+ {[%clk 0:01:05]}  Qxc8 {[%clk 0:00:28]} 32. Qd2 {[%clk 0:00:58]}  Qc2 {[%clk 0:00:27]} 33. Qxc2 {[%clk 0:00:56]}  Bxc2 {[%clk 0:00:27]} 34. h4 {[%clk 0:00:54]}  Kf7 {[%clk 0:00:28]} 35. b3 {[%clk 0:00:51]}  Bd1 {[%clk 0:00:28]} 36. g5 {[%clk 0:00:51]}  hxg5 {[%clk 0:00:29]} 37. hxg5 {[%clk 0:00:52]}  fxg5 {[%clk 0:00:29]} 38. Bxg5 {[%clk 0:00:52]}  g6 {[%clk 0:00:30]} 39. Kb2 {[%clk 0:00:52]}  Ke6 {[%clk 0:00:30]} 40. Kc3 {[%clk 0:00:47]}  Kf5 {[%clk 0:00:30]} 41. Be3 {[%clk 0:00:39]}  a6 {[%clk 0:00:30]} 42. Kd2 {[%clk 0:00:38]}  Bg4 {[%clk 0:00:28]} 43. Bb6 {[%clk 0:00:38]}  Ke5 {[%clk 0:00:28]} 44. Ke3 {[%clk 0:00:38]}  Bf5 {[%clk 0:00:27]} 45. b4 {[%clk 0:00:37]}  Kd5 {[%clk 0:00:25]} 46. a4 {[%clk 0:00:36]}  Kc4 {[%clk 0:00:25]} 47. a5 {[%clk 0:00:32]}  Kxb4 {[%clk 0:00:24]} 48. Ke2 {[%clk 0:00:31]}  Kc4 {[%clk 0:00:25]} 49. Ke3 {[%clk 0:00:32]}  Kd5 {[%clk 0:00:25]} 50. Kf4 {[%clk 0:00:31]}  Kc4 {[%clk 0:00:24]} 51. Ke3 {[%clk 0:00:31]}  Kd5 {[%clk 0:00:24]} 52. Kf4 {[%clk 0:00:32]}  Kc4 {[%clk 0:00:24]} 53. Ke3 {[%clk 0:00:32]} 1/2-1/2


[Site "https://www.chess.com"]

[Event "Titled Tuesday Blitz March 22 Late 2022"]
[White "Jones, Gawain C B"]
[Black "Yoo, Christopher Woojin"]
[WhiteFideId "409561"]
[BlackFideId "30909694"]
[WhiteElo "2657"]
[BlackElo "2105"]
[Result "0-1"]
[Round "05"]
[TimeControl "180+1"]
[Date "2022.03.22"]
[WhiteClock "0:00:05"]
[BlackClock "0:00:04"]

1. Nf3 {[%clk 0:03:00]}  Nf6 {[%clk 0:02:59]} 2. g3 {[%clk 0:03:01]}  d5 {[%clk 0:02:59]} 3. Bg2 {[%clk 0:03:00]}  e6 {[%clk 0:03:00]} 4. O-O {[%clk 0:03:00]}  Be7 {[%clk 0:03:00]} 5. c4 {[%clk 0:03:00]}  O-O {[%clk 0:03:01]} 6. b3 {[%clk 0:03:00]}  b6 {[%clk 0:03:01]} 7. Bb2 {[%clk 0:03:00]}  Bb7 {[%clk 0:03:01]} 8. e3 {[%clk 0:02:59]}  Nbd7 {[%clk 0:03:01]} 9. Nc3 {[%clk 0:02:59]}  c5 {[%clk 0:03:01]} 10. d4 {[%clk 0:02:57]}  dxc4 {[%clk 0:02:45]} 11. bxc4 {[%clk 0:02:57]}  cxd4 {[%clk 0:02:45]} 12. exd4 {[%clk 0:02:53]}  Rc8 {[%clk 0:02:45]} 13. d5 {[%clk 0:02:52]}  exd5 {[%clk 0:02:41]} 14. cxd5 {[%clk 0:02:52]}  Bb4 {[%clk 0:02:37]} 15. Qd4 {[%clk 0:02:48]}  Bxc3 {[%clk 0:02:29]} 16. Bxc3 {[%clk 0:02:48]}  Bxd5 {[%clk 0:02:29]} 17. Rfd1 {[%clk 0:02:36]}  Rc4 {[%clk 0:02:21]} 18. Qd3 {[%clk 0:02:29]}  Qc7 {[%clk 0:02:11]} 19. Bb2 {[%clk 0:02:28]}  Be4 {[%clk 0:01:41]} 20. Qe3 {[%clk 0:02:18]}  Re8 {[%clk 0:01:14]} 21. Re1 {[%clk 0:02:08]}  Rc2 {[%clk 0:00:41]} 22. Bxf6 {[%clk 0:02:01]}  Nxf6 {[%clk 0:00:41]} 23. Ng5 {[%clk 0:01:53]}  Bc6 {[%clk 0:00:32]} 24. Qd3 {[%clk 0:01:48]}  Rc5 {[%clk 0:00:31]} 25. Rxe8+ {[%clk 0:01:30]}  Bxe8 {[%clk 0:00:30]} 26. Ne4 {[%clk 0:01:03]}  Rc1+ {[%clk 0:00:29]} 27. Rxc1 {[%clk 0:01:02]}  Qxc1+ {[%clk 0:00:30]} 28. Bf1 {[%clk 0:01:02]}  Nxe4 {[%clk 0:00:30]} 29. Qxe4 {[%clk 0:01:02]}  Qc6 {[%clk 0:00:30]} 30. Qe5 {[%clk 0:00:55]}  Qe6 {[%clk 0:00:27]} 31. Qb8 {[%clk 0:00:53]}  Qd7 {[%clk 0:00:21]} 32. h4 {[%clk 0:00:32]}  h5 {[%clk 0:00:18]} 33. Bh3 {[%clk 0:00:25]}  Qe7 {[%clk 0:00:17]} 34. Bg2 {[%clk 0:00:24]}  Kh7 {[%clk 0:00:15]} 35. Qf4 {[%clk 0:00:17]}  g6 {[%clk 0:00:09]} 36. Kh2 {[%clk 0:00:16]}  Kg7 {[%clk 0:00:09]} 37. Qb8 {[%clk 0:00:15]}  Bb5 {[%clk 0:00:07]} 38. Bf3 {[%clk 0:00:11]}  Bc4 {[%clk 0:00:06]} 39. a4 {[%clk 0:00:10]}  Qf6 {[%clk 0:00:06]} 40. Kg2 {[%clk 0:00:08]}  a6 {[%clk 0:00:07]} 41. Qc8 {[%clk 0:00:04]}  b5 {[%clk 0:00:06]} 42. a5 {[%clk 0:00:03]}  Be6 {[%clk 0:00:04]} 43. Qc6 {[%clk 0:00:02]}  Bf5 {[%clk 0:00:04]} 44. Qc5 {[%clk 0:00:02]}  Bd3 {[%clk 0:00:03]} 45. Bd5 {[%clk 0:00:02]}  Qe5 {[%clk 0:00:02]} 46. Qc6 {[%clk 0:00:02]}  b4 {[%clk 0:00:02]} 47. Qd7 {[%clk 0:00:03]}  Qf6 {[%clk 0:00:01]} 48. Bb3 {[%clk 0:00:03]}  Bb5 {[%clk 0:00:02]} 49. Qd5 {[%clk 0:00:02]}  Bc6 {[%clk 0:00:02]} 50. Kf1 {[%clk 0:00:02]}  Bxd5 {[%clk 0:00:02]} 51. Bxd5 {[%clk 0:00:03]}  Qa1+ {[%clk 0:00:03]} 52. Ke2 {[%clk 0:00:04]}  Qxa5 {[%clk 0:00:04]} 53. Kd3 {[%clk 0:00:04]}  Qxd5+ {[%clk 0:00:04]} 54. Kc2 {[%clk 0:00:05]}  Qc4+ {[%clk 0:00:04]} 0-1


[Site "https://www.chess.com"]

[Event "Titled Tuesday Blitz March 22 Late 2022"]
[White "Kaasen, Tor Fredrik"]
[Black "Indjic, Aleksandar"]
[WhiteFideId "1516647"]
[BlackFideId "911925"]
[WhiteElo "2335"]
[BlackElo "2616"]
[Result "0-1"]
[Round "05"]
[TimeControl "180+1"]
[Date "2022.03.22"]
[WhiteClock "0:00:20"]
[BlackClock "0:01:42"]

1. d4 {[%clk 0:02:57]}  Nf6 {[%clk 0:03:00]} 2. c4 {[%clk 0:02:57]}  c5 {[%clk 0:03:00]} 3. d5 {[%clk 0:02:58]}  e6 {[%clk 0:03:01]} 4. Nc3 {[%clk 0:02:58]}  exd5 {[%clk 0:03:02]} 5. cxd5 {[%clk 0:02:59]}  d6 {[%clk 0:03:02]} 6. g3 {[%clk 0:02:59]}  g6 {[%clk 0:03:03]} 7. Bg2 {[%clk 0:03:00]}  Bg7 {[%clk 0:03:03]} 8. Nf3 {[%clk 0:03:00]}  O-O {[%clk 0:03:04]} 9. O-O {[%clk 0:03:01]}  Re8 {[%clk 0:03:05]} 10. Bf4 {[%clk 0:03:01]}  Na6 {[%clk 0:03:05]} 11. Re1 {[%clk 0:02:58]}  Bg4 {[%clk 0:03:05]} 12. Nd2 {[%clk 0:02:53]}  Nh5 {[%clk 0:03:05]} 13. Be3 {[%clk 0:02:44]}  Rxe3 {[%clk 0:03:04]} 14. fxe3 {[%clk 0:02:45]}  Nc7 {[%clk 0:03:04]} 15. Qb3 {[%clk 0:02:40]}  b5 {[%clk 0:02:58]} 16. Nxb5 {[%clk 0:02:25]}  Rb8 {[%clk 0:02:58]} 17. Qc4 {[%clk 0:02:25]}  Rxb5 {[%clk 0:02:55]} 18. Qxg4 {[%clk 0:02:25]}  Rxb2 {[%clk 0:02:51]} 19. Nc4 {[%clk 0:02:06]}  Rb4 {[%clk 0:02:51]} 20. Rab1 {[%clk 0:02:06]}  f5 {[%clk 0:02:37]} 21. Rxb4 {[%clk 0:01:43]}  fxg4 {[%clk 0:02:37]} 22. Rb7 {[%clk 0:01:43]}  Nf6 {[%clk 0:02:31]} 23. Reb1 {[%clk 0:01:44]}  Nfe8 {[%clk 0:02:21]} 24. Rxa7 {[%clk 0:01:31]}  Qf6 {[%clk 0:02:21]} 25. Rb8 {[%clk 0:01:27]}  Bf8 {[%clk 0:02:18]} 26. h3 {[%clk 0:01:23]}  Qc3 {[%clk 0:02:17]} 27. Ra4 {[%clk 0:00:54]}  Qc2 {[%clk 0:02:16]} 28. Rb3 {[%clk 0:00:48]}  Qxe2 {[%clk 0:02:02]} 29. hxg4 {[%clk 0:00:48]}  Nf6 {[%clk 0:01:58]} 30. Rb2 {[%clk 0:00:34]}  Qe1+ {[%clk 0:01:57]} 31. Bf1 {[%clk 0:00:28]}  Ncxd5 {[%clk 0:01:54]} 32. Rf2 {[%clk 0:00:23]}  Nxg4 {[%clk 0:01:50]} 33. Rf3 {[%clk 0:00:20]}  Qd1 {[%clk 0:01:42]} 0-1


[Site "https://www.chess.com"]

[Event "Titled Tuesday Blitz March 22 Late 2022"]
[White "Karttunen, Mika"]
[Black "Rustemov, Alexander"]
[WhiteFideId "502081"]
[BlackFideId "4119002"]
[WhiteElo "2343"]
[BlackElo "2794"]
[Result "0-1"]
[Round "05"]
[TimeControl "180+1"]
[Date "2022.03.22"]
[WhiteClock "0:00:53"]
[BlackClock "0:01:41"]

1. e4 {[%clk 0:03:00]}  e6 {[%clk 0:02:59]} 2. d4 {[%clk 0:03:00]}  d5 {[%clk 0:03:00]} 3. Nc3 {[%clk 0:03:00]}  Bb4 {[%clk 0:03:00]} 4. e5 {[%clk 0:03:00]}  c5 {[%clk 0:03:01]} 5. a3 {[%clk 0:03:00]}  Bxc3+ {[%clk 0:03:01]} 6. bxc3 {[%clk 0:03:01]}  Ne7 {[%clk 0:03:02]} 7. h4 {[%clk 0:03:01]}  Qc7 {[%clk 0:03:01]} 8. h5 {[%clk 0:03:01]}  cxd4 {[%clk 0:03:01]} 9. cxd4 {[%clk 0:03:00]}  Qc3+ {[%clk 0:03:01]} 10. Bd2 {[%clk 0:03:00]}  Qxd4 {[%clk 0:03:02]} 11. Nf3 {[%clk 0:03:01]}  Qe4+ {[%clk 0:03:02]} 12. Be3 {[%clk 0:03:01]}  Nf5 {[%clk 0:02:59]} 13. Qd2 {[%clk 0:02:14]}  Nxe3 {[%clk 0:02:39]} 14. fxe3 {[%clk 0:02:15]}  Qa4 {[%clk 0:02:19]} 15. Rh4 {[%clk 0:02:13]}  Qd7 {[%clk 0:02:16]} 16. h6 {[%clk 0:02:11]}  g6 {[%clk 0:02:05]} 17. Rb1 {[%clk 0:01:52]}  O-O {[%clk 0:02:04]} 18. e4 {[%clk 0:01:39]}  Qe7 {[%clk 0:01:56]} 19. Qb4 {[%clk 0:01:21]}  Qc7 {[%clk 0:01:50]} 20. Bd3 {[%clk 0:01:01]}  Nc6 {[%clk 0:01:45]} 21. Qd6 {[%clk 0:00:53]}  Qa5+ {[%clk 0:01:41]} 0-1


[Site "https://www.chess.com"]

[Event "Titled Tuesday Blitz March 22 Late 2022"]
[White "Khanin, Semen"]
[Black "Riehle, Marco"]
[WhiteFideId "4111990"]
[BlackFideId "12904392"]
[WhiteElo "2442"]
[BlackElo "2462"]
[Result "0-1"]
[Round "05"]
[TimeControl "180+1"]
[Date "2022.03.22"]
[WhiteClock "0:00:04"]
[BlackClock "0:01:11"]

1. e4 {[%clk 0:03:00]}  e5 {[%clk 0:02:58]} 2. Nf3 {[%clk 0:03:00]}  Nf6 {[%clk 0:02:59]} 3. Nxe5 {[%clk 0:03:00]}  Nxe4 {[%clk 0:03:00]} 4. Qe2 {[%clk 0:03:00]}  Qe7 {[%clk 0:03:00]} 5. Qxe4 {[%clk 0:02:59]}  d6 {[%clk 0:03:00]} 6. d4 {[%clk 0:02:59]}  dxe5 {[%clk 0:03:00]} 7. dxe5 {[%clk 0:02:58]}  Nc6 {[%clk 0:02:58]} 8. Nc3 {[%clk 0:02:58]}  Qxe5 {[%clk 0:02:58]} 9. Qxe5+ {[%clk 0:02:58]}  Nxe5 {[%clk 0:02:59]} 10. Bf4 {[%clk 0:02:58]}  f6 {[%clk 0:02:59]} 11. O-O-O {[%clk 0:02:54]}  Bd7 {[%clk 0:02:58]} 12. Nb5 {[%clk 0:02:40]}  O-O-O {[%clk 0:02:58]} 13. Nxa7+ {[%clk 0:02:38]}  Kb8 {[%clk 0:02:58]} 14. Nb5 {[%clk 0:02:38]}  Bc5 {[%clk 0:02:59]} 15. Bg3 {[%clk 0:02:36]}  g5 {[%clk 0:02:58]} 16. Nc3 {[%clk 0:02:30]}  Bc6 {[%clk 0:02:55]} 17. Rxd8+ {[%clk 0:02:28]}  Rxd8 {[%clk 0:02:55]} 18. h4 {[%clk 0:02:13]}  g4 {[%clk 0:02:55]} 19. Rg1 {[%clk 0:01:54]}  h5 {[%clk 0:02:30]} 20. Bb5 {[%clk 0:01:53]}  Bxb5 {[%clk 0:02:23]} 21. Nxb5 {[%clk 0:01:53]}  Kc8 {[%clk 0:02:19]} 22. Re1 {[%clk 0:01:52]}  c6 {[%clk 0:02:05]} 23. Nc3 {[%clk 0:01:48]}  Ng6 {[%clk 0:01:55]} 24. Re6 {[%clk 0:01:45]}  Rf8 {[%clk 0:01:55]} 25. Ne4 {[%clk 0:01:43]}  Be7 {[%clk 0:01:56]} 26. Bd6 {[%clk 0:00:53]}  Bxd6 {[%clk 0:01:48]} 27. Rxd6 {[%clk 0:00:53]}  f5 {[%clk 0:01:41]} 28. Nc5 {[%clk 0:00:30]}  Nxh4 {[%clk 0:01:40]} 29. g3 {[%clk 0:00:29]}  Nf3 {[%clk 0:01:39]} 30. Rh6 {[%clk 0:00:28]}  h4 {[%clk 0:01:39]} 31. gxh4 {[%clk 0:00:27]}  f4 {[%clk 0:01:39]} 32. Rg6 {[%clk 0:00:26]}  Ne5 {[%clk 0:01:34]} 33. Rg5 {[%clk 0:00:22]}  g3 {[%clk 0:01:35]} 34. fxg3 {[%clk 0:00:22]}  f3 {[%clk 0:01:35]} 35. Ne4 {[%clk 0:00:22]}  Nc4 {[%clk 0:01:33]} 36. Nf2 {[%clk 0:00:21]}  Re8 {[%clk 0:01:33]} 37. Kd1 {[%clk 0:00:03]}  Nxb2+ {[%clk 0:01:28]} 38. Kd2 {[%clk 0:00:03]}  Re2+ {[%clk 0:01:28]} 39. Kc3 {[%clk 0:00:03]}  Na4+ {[%clk 0:01:27]} 40. Kb3 {[%clk 0:00:03]}  b5 {[%clk 0:01:23]} 41. Nd3 {[%clk 0:00:03]}  Re3 {[%clk 0:01:11]} 42. Rf5 {[%clk 0:00:03]}  c5 {[%clk 0:01:11]} 43. h5 {[%clk 0:00:01]}  c4+ {[%clk 0:01:11]} 44. Kb4 {[%clk 0:00:01]}  cxd3 {[%clk 0:01:11]} 45. cxd3 {[%clk 0:00:02]}  Nb2 {[%clk 0:01:10]} 46. h6 {[%clk 0:00:03]}  Nxd3+ {[%clk 0:01:10]} 47. Kxb5 {[%clk 0:00:03]}  Re5+ {[%clk 0:01:10]} 48. Rxe5 {[%clk 0:00:03]}  Nxe5 {[%clk 0:01:11]} 49. h7 {[%clk 0:00:04]}  Ng6 {[%clk 0:01:11]} 0-1


[Site "https://www.chess.com"]

[Event "Titled Tuesday Blitz March 22 Late 2022"]
[White "Kohler, Aran"]
[Black "Papp, Petra"]
[WhiteFideId "1002856"]
[BlackFideId "739049"]
[WhiteElo "2279"]
[BlackElo "2259"]
[Result "1-0"]
[Round "05"]
[TimeControl "180+1"]
[Date "2022.03.22"]
[WhiteClock "0:00:20"]
[BlackClock "0:00:08"]

1. e4 {[%clk 0:02:59]}  d6 {[%clk 0:02:56]} 2. d4 {[%clk 0:02:57]}  Nf6 {[%clk 0:02:55]} 3. Nc3 {[%clk 0:02:56]}  e5 {[%clk 0:02:55]} 4. Nf3 {[%clk 0:02:56]}  Nbd7 {[%clk 0:02:55]} 5. g4 {[%clk 0:02:56]}  h6 {[%clk 0:02:46]} 6. Rg1 {[%clk 0:02:55]}  c6 {[%clk 0:02:45]} 7. Bc4 {[%clk 0:02:55]}  b5 {[%clk 0:02:22]} 8. Bb3 {[%clk 0:02:46]}  b4 {[%clk 0:02:22]} 9. dxe5 {[%clk 0:02:45]}  bxc3 {[%clk 0:02:05]} 10. exf6 {[%clk 0:02:43]}  Qxf6 {[%clk 0:02:05]} 11. bxc3 {[%clk 0:02:33]}  g5 {[%clk 0:01:53]} 12. Nd4 {[%clk 0:02:14]}  Ne5 {[%clk 0:01:45]} 13. Nf5 {[%clk 0:02:14]}  Bxf5 {[%clk 0:01:24]} 14. exf5 {[%clk 0:02:13]}  Bg7 {[%clk 0:01:20]} 15. Bb2 {[%clk 0:02:07]}  O-O {[%clk 0:01:18]} 16. Rg3 {[%clk 0:01:54]}  d5 {[%clk 0:01:12]} 17. Ba3 {[%clk 0:01:44]}  Rfe8 {[%clk 0:01:11]} 18. Kf1 {[%clk 0:01:45]}  Nc4 {[%clk 0:01:01]} 19. Bc5 {[%clk 0:01:41]}  Re4 {[%clk 0:00:54]} 20. Bd4 {[%clk 0:01:37]}  Qe7 {[%clk 0:00:53]} 21. Bxc4 {[%clk 0:01:30]}  dxc4 {[%clk 0:00:50]} 22. Kg2 {[%clk 0:00:54]}  Re8 {[%clk 0:00:48]} 23. Bxg7 {[%clk 0:00:49]}  Kxg7 {[%clk 0:00:48]} 24. Qf3 {[%clk 0:00:45]}  Qe5 {[%clk 0:00:43]} 25. Rd1 {[%clk 0:00:40]}  Rf4 {[%clk 0:00:37]} 26. Qxc6 {[%clk 0:00:39]}  Rxf2+ {[%clk 0:00:31]} 27. Kh3 {[%clk 0:00:26]}  Qe2 {[%clk 0:00:19]} 28. Rh1 {[%clk 0:00:24]}  Rf1 {[%clk 0:00:15]} 29. Rxf1 {[%clk 0:00:21]}  Qxf1+ {[%clk 0:00:15]} 30. Qg2 {[%clk 0:00:22]}  Re2 {[%clk 0:00:13]} 31. Qxf1 {[%clk 0:00:20]}  Rxc2 {[%clk 0:00:13]} 32. Qxc4 {[%clk 0:00:20]}  Rd2 {[%clk 0:00:12]} 33. Re3 {[%clk 0:00:20]}  Rd7 {[%clk 0:00:11]} 34. Re5 {[%clk 0:00:20]}  Rb7 {[%clk 0:00:10]} 35. Rc5 {[%clk 0:00:20]}  Rb2 {[%clk 0:00:09]} 36. Rc7 {[%clk 0:00:20]}  Rf2 {[%clk 0:00:08]} 37. Qxf7+ {[%clk 0:00:20]} 1-0


[Site "https://www.chess.com"]